bitfinex/quotes_SOLUSD_20240727
["timestamp","ask_amount","ask_price","bid_price","bid_amount"]
[1722111872538,20.0,179.1,178.93,18.57100804]
[1722111872736,20.0,179.14,178.95,16.79]
[1722111872972,20.0,179.12,178.96,38.57070948]
[1722111873138,20.0,179.1,178.97,45.0]
[1722111873343,36.44386153,179.18,178.96,1.78070948]
[1722111873344,20.0,179.08,178.96,1.78070948]
[1722111873538,20.0,179.13,178.97,1.78060998]
[1722111873752,20.0,179.15,178.97,18.57060998]
[1722111873946,20.0,179.17,178.99,16.79]
[1722111874266,20.0,179.17,179.0,44.99501156]
[1722111874565,20.0,179.13,179.01,1.7802121]
[1722111874779,25.582,179.15,179.01,1.7802121]
[1722111874980,20.0,179.12,179.01,1.7802121]
[1722111875156,20.0,179.1,179.01,1.7802121]
[1722111875356,5.5838,179.09,179.01,1.7802121]
[1722111875652,5.5833,179.11,179.01,1.7802121]
[1722111875957,20.0,179.12,179.01,1.7802121]
[1722111876167,5.5835,179.1,179.01,1.7802121]
[1722111876475,25.583,179.12,179.01,1.7802121]
[1722111876677,5.5832,179.11,179.01,1.7802121]
[1722111877061,20.0,179.09,179.01,1.7802121]
[1722111877247,25.5851,179.05,179.01,1.7802121]
[1722111877572,25.5846,179.07,179.01,1.7802121]
[1722111877780,5.5846,179.07,179.01,1.7802121]
[1722111877960,5.5847,179.06,179.01,1.7802121]
[1722111878162,20.0,179.13,179.01,1.7802121]
[1722111878361,20.0,179.12,179.01,1.7802121]
[1722111879177,0.96523727,179.17,179.01,1.7802121]
[1722111879178,25.5841,179.08,179.01,1.7802121]
[1722111879775,20.0,179.08,179.01,1.7802121]
[1722111879982,20.0,179.08,178.92,23.2147]
[1722111880386,20.0,179.14,178.94,16.79]
[1722111880677,26.54663727,179.17,178.96,16.79]
[1722111880981,5.5816,179.16,178.98,16.79]
[1722111881157,20.96523727,179.17,179.0,16.79]
[1722111881353,20.0,179.17,179.01,63.5702121]
[1722111881572,20.0,179.17,179.02,18.57011266]
[1722111881782,25.5802,179.21,179.03,63.57001323]
[1722111881954,0.96508766,179.22,179.04,21.77991381]
[1722111881955,20.0,179.19,179.04,21.77991381]
[1722111882155,5.5818,179.16,179.05,46.7798144]
[1722111882459,5.5818,179.16,179.01,0.17]
[1722111882460,20.0,179.14,178.9,39.0544]
[1722111882673,20.0,179.2,178.96,22.72]
[1722111882989,20.0,179.22,178.98,16.79]
[1722111883154,20.0,179.22,179.0,16.79]
[1722111883485,20.0,179.25,179.02,16.79]
[1722111883681,20.0,179.25,179.06,16.79]
[1722111883983,20.0,179.25,179.08,16.79]
[1722111884160,20.0,179.25,179.09,83.56941688]
[1722111884355,5.5767,179.32,179.11,16.79]
[1722111884660,5.5789,179.25,179.12,1.77911885]
[1722111884860,20.0,179.29,179.13,0.34]
[1722111885066,20.0,179.29,179.14,1.77892022]
[1722111885378,20.0,179.28,179.14,1.77892022]
[1722111886099,26.60984207,179.35,179.14,18.56892022]
[1722111886100,20.0,179.31,179.14,18.56892022]
[1722111886372,26.60984207,179.35,179.15,82.13]
[1722111886373,20.0,179.33,179.15,82.13]
[1722111886583,20.0,179.32,179.16,1.77872164]
[1722111886754,20.0,179.3,179.16,1.77872164]
[1722111886950,20.0,179.28,179.16,1.77872164]
[1722111887151,20.0,179.22,179.1,6.4247]
[1722111887452,20.0,179.18,179.02,6.4247]
[1722111887653,5.5814,179.17,179.06,1.77971501]
[1722111887883,20.0,179.18,179.06,1.77971501]
[1722111887884,25.5823,179.14,179.06,1.77971501]
[1722111888388,20.0,179.14,179.06,1.77971501]
[1722111888687,20.0,179.16,179.06,1.77971501]
[1722111889016,20.0,179.21,179.06,1.77971501]
[1722111889169,20.0,179.17,179.06,1.77971501]
[1722111889557,6.1736,179.26,179.06,1.77971501]
[1722111889558,20.0,179.2,179.06,1.77971501]
[1722111889769,20.0,179.2,179.06,18.56971501]
[1722111889993,20.0,179.23,179.08,16.79]
[1722111890219,20.0,179.23,179.03,20.0]
[1722111890220,20.0,179.19,179.09,1.77941688]
[1722111890379,22.72,179.29,179.02,6.4247]
[1722111890380,5.5823,179.14,179.02,6.4247]
[1722111890586,25.5823,179.14,179.03,1.78001323]
[1722111890794,20.0,179.12,179.03,1.78001323]
[1722111891017,20.0,179.21,179.03,1.78001323]
[1722111891018,20.0,179.15,179.03,1.78001323]
[1722111891179,20.0,179.16,179.03,1.78001323]
[1722111891596,5.5826,179.13,179.03,1.78001323]
[1722111891800,20.0,179.12,179.03,1.78001323]
[1722111892004,20.0,179.14,179.03,1.78001323]
[1722111892220,20.0,179.12,179.03,1.78001323]
[1722111892401,25.5829,179.12,179.03,1.78001323]
[1722111892598,25.5824,179.14,179.03,1.78001323]
[1722111892801,20.0,179.14,179.03,1.78001323]
[1722111893298,5.5811,179.18,179.03,1.78001323]
[1722111893299,20.0,179.16,179.03,1.78001323]
[1722111893506,20.0,179.14,179.03,1.78001323]
[1722111893890,25.5823,179.14,179.03,1.78001323]
[1722111894097,25.5817,179.16,179.03,46.78001323]
[1722111894295,25.5823,179.14,179.03,46.78001323]
[1722111894817,20.0,179.11,179.03,1.78001323]
[1722111895003,20.0,179.13,179.03,1.78001323]
[1722111895386,20.0,179.13,179.03,46.78001323]
[1722111895809,20.0,179.13,179.03,1.78001323]
[1722111897012,27.87790025,179.4,179.03,1.78001323]
[1722111897013,20.0,179.16,179.03,1.78001323]
[1722111897187,20.0,179.18,179.03,1.78001323]
[1722111897392,20.0,179.2,179.03,83.57001323]
[1722111898897,20.0,179.23,179.04,0.34]
[1722111899216,13.9445,179.29,179.04,0.34]
[1722111899217,20.0,179.33,179.1,16.79]
[1722111899424,20.0,179.29,179.12,16.79]
[1722111899719,20.0,179.29,179.13,38.56901953]
[1722111899896,20.0,179.31,179.14,63.56892022]
[1722111900093,20.0,179.29,179.15,21.77882093]
[1722111900297,20.0,179.28,179.15,1.77882093]
[1722111900538,20.0,179.3,179.15,1.77882093]
[1722111900819,20.0,179.28,179.15,1.77882093]
[1722111900992,20.0,179.26,179.15,1.77882093]
[1722111901195,20.0,179.24,179.15,1.77882093]
[1722111901723,25.5783,179.27,179.15,1.77882093]
[1722111901919,20.0,179.31,179.15,1.77882093]
[1722111902221,20.0,179.33,179.15,18.56882093]
[1722111902426,20.0,179.31,179.16,36.79]
[1722111902632,20.0,179.33,179.17,46.77862236]
[1722111902824,33.9416,179.32,179.18,1.7785231]
[1722111903003,20.0,179.22,179.09,16.1782]
[1722111903332,20.0,179.22,179.1,1.77931753]
[1722111903639,5.5807,179.19,179.1,1.77931753]
[1722111903803,20.0,179.17,179.1,1.77931753]
[1722111904002,25.5806,179.2,179.1,1.77931753]
[1722111904321,50.737,179.26,179.1,1.77931753]
[1722111904322,20.0,179.19,179.1,1.77931753]
[1722111904526,25.5808,179.19,179.1,1.77931753]
[1722111905048,20.0,179.17,179.1,1.77931753]
[1722111905216,0.9653817,179.22,179.1,1.77931753]
[1722111905217,20.0,179.15,179.1,1.77931753]
[1722111905647,25.5825,179.13,179.1,1.77931753]
[1722111905848,20.0,179.13,179.1,1.77931753]
[1722111906143,20.0,179.15,179.1,1.77931753]
[1722111906446,20.0,179.12,179.1,1.77931753]
[1722111906630,20.0,179.14,179.1,1.77931753]
[1722111906829,20.0,179.16,179.0,6.3585]
[1722111907031,20.0,179.2,179.01,18.5702121]
[1722111907255,20.0,179.15,179.02,1.78011266]
[1722111907545,5.5827,179.13,179.02,1.78011266]
[1722111907732,20.0,179.11,179.02,1.78011266]
[1722111907936,5.5827,179.13,179.02,1.78011266]
[1722111908249,20.0,179.16,179.02,1.78011266]
[1722111908621,20.0,179.13,179.02,1.78011266]
[1722111908945,20.0,179.1,179.02,1.78011266]
[1722111909754,20.0,179.12,179.02,1.78011266]
[1722111910220,20.0,179.08,179.0,6.3585]
[1722111910425,25.5848,179.06,178.94,22.5367]
[1722111910737,20.0,179.06,178.95,1.78080899]
[1722111910919,20.0,179.04,178.95,1.78080899]
[1722111911878,20.0,178.98,178.87,16.1782]
[1722111912035,5.5876,178.97,178.87,16.1782]
[1722111912353,20.0,178.98,178.87,16.1782]
[1722111912556,25.5883,178.95,178.86,6.3585]
[1722111912733,0.17,178.99,178.86,6.3585]
[1722111912734,20.0,178.93,178.86,6.3585]
[1722111912931,20.0,178.93,178.8,15.1042]
[1722111913135,20.0,178.93,178.81,1.78220328]
[1722111913337,20.0,178.9,178.81,1.78220328]
[1722111913525,15.8472,178.98,178.79,6.509]
[1722111913526,20.0,178.88,178.79,6.509]
[1722111913934,20.0,178.86,178.72,22.3839845]
[1722111914141,20.0,178.84,178.72,22.3839845]
[1722111914325,20.0,178.86,178.72,0.7707845]
[1722111914526,20.0,178.82,178.72,0.7707845]
[1722111914748,20.0,178.86,178.72,2.55388527]
[1722111914969,25.82793164,178.96,178.74,6.509]
[1722111915173,20.0,178.94,178.75,16.8870015]
[1722111915328,5.82793164,178.96,178.76,1.78270177]
[1722111915535,20.0,178.99,178.76,18.57270177]
[1722111915743,20.0,179.02,178.77,21.11786489]
[1722111915958,20.0,178.99,178.78,18.57250234]
[1722111916174,20.0,178.96,178.79,66.78240264]
[1722111916461,20.0,179.02,178.81,16.79]
[1722111916668,5.81522478,179.04,178.83,23.299]
[1722111916669,20.0,179.04,178.83,23.299]
[1722111916831,20.0,179.06,178.85,16.79]
[1722111917033,20.0,178.99,178.86,46.78170507]
[1722111917231,20.0,178.99,178.84,65.0]
[1722111917232,20.0,179.03,178.87,1.78160546]
[1722111917444,25.8200228,179.07,178.87,1.78160546]
[1722111917445,20.0,179.05,178.87,1.78160546]
[1722111917945,20.0,179.05,178.88,0.34]
[1722111918159,20.0,179.05,178.89,1.78140628]
[1722111918455,20.0,179.0,178.89,1.78140628]
[1722111918658,20.0,179.03,178.89,1.78140628]
[1722111919134,20.0,179.01,178.89,1.78140628]
[1722111919337,25.5864,179.01,178.89,1.78140628]
[1722111919651,20.0,178.99,178.89,1.78140628]
[1722111919838,20.0,179.02,178.89,1.78140628]
[1722111920057,20.0,179.08,178.89,1.78140628]
[1722111920243,20.0,179.05,178.89,1.78140628]
[1722111920446,20.0,179.1,178.89,16.88560628]
[1722111920642,20.0,179.11,178.91,23.299]
[1722111920868,40.0,179.11,178.92,83.74110758]
[1722111921047,20.0,179.06,178.93,1.78100804]
[1722111921250,20.0,179.03,178.93,1.78100804]
[1722111921469,20.0,178.99,178.91,6.509]
[1722111921769,20.0,179.0,178.91,6.509]
[1722111922269,20.0,178.99,178.91,6.509]
[1722111922466,20.0,178.96,178.8,31.8942]
[1722111922685,20.0,178.93,178.81,1.78220328]
[1722111923472,20.0,178.91,178.81,1.78220328]
[1722111923771,45.5895,178.91,178.78,6.509]
[1722111924072,20.0,178.86,178.78,6.509]
[1722111925546,20.0,178.84,178.73,15.1042]
[1722111925743,20.0,178.86,178.73,15.1042]
[1722111925948,20.0,178.86,178.73,16.887201]
[1722111926149,20.0,178.86,178.74,1.78290125]
[1722111926679,0.17,178.92,178.72,7.2797845]
[1722111926680,20.0,178.8,178.72,7.2797845]
[1722111927053,20.0,178.79,178.72,7.2797845]
[1722111927247,25.5939,178.77,178.72,0.7707845]
[1722111927576,20.0,178.75,178.72,0.7707845]
[1722111927872,20.0,178.73,178.72,0.7707845]
[1722111928166,20.0,178.76,178.72,0.7707845]
[1722111928372,20.0,178.79,178.72,0.7707845]
[1722111928571,20.0,178.76,178.72,0.7707845]
[1722111928755,25.5948,178.74,178.72,0.7707845]
[1722111929151,20.0,178.73,178.72,0.7707845]
[1722111929356,20.0,178.74,178.72,0.7707845]
[1722111929871,25.5948,178.74,178.72,0.7707845]
[1722111930656,20.0,178.73,178.72,0.7707845]
[1722111930876,20.0,178.74,178.72,0.7707845]
[1722111931056,20.0,178.73,178.72,0.7707845]
[1722111931576,40.0,178.73,178.72,0.7707845]
[1722111932078,20.0,178.76,178.72,0.7707845]
[1722111932656,5.5948,178.74,178.72,0.7707845]
[1722111932879,20.0,178.75,178.72,0.7707845]
[1722111933056,25.81388874,178.8,178.72,0.7707845]
[1722111933258,20.0,178.8,178.72,0.7707845]
[1722111933555,20.0,178.82,178.72,0.7707845]
[1722111934153,25.5917,178.84,178.72,0.7707845]
[1722111934471,20.0,178.84,178.73,6.4872]
[1722111934677,20.0,178.87,178.74,45.0]
[1722111934987,20.0,178.84,178.73,8.270201]
[1722111935179,25.5903,178.88,178.74,46.78290125]
[1722111935377,20.0,178.84,178.74,1.78290125]
[1722111935587,20.0,178.86,178.74,1.78290125]
[1722111935756,20.0,178.88,178.74,46.78290125]
[1722111935962,20.0,178.86,178.74,46.78290125]
[1722111936282,20.0,178.89,178.74,46.78290125]
[1722111936464,20.0,178.89,178.74,63.57290125]
[1722111936777,20.0,178.9,178.75,20.0]
[1722111936950,20.0,178.89,178.76,45.0]
[1722111937156,20.0,178.91,178.76,45.0]
[1722111937374,20.0,178.93,178.76,61.79]
[1722111937576,5.5884,178.94,178.77,36.79]
[1722111937785,5.5881,178.95,178.78,61.79]
[1722111938076,20.0,178.93,178.79,20.0]
[1722111938275,20.0,178.96,178.8,61.79]
[1722111938480,20.0,178.98,178.8,61.79]
[1722111938784,20.0,178.98,178.82,23.2772]
[1722111939088,20.0,178.91,178.82,6.4872]
[1722111939291,20.0,178.88,178.75,6.4872]
[1722111939458,20.0,178.89,178.75,6.4872]
[1722111939459,20.0,178.82,178.75,6.4872]
[1722111939663,25.5934,178.79,178.74,1.78290125]
[1722111939875,20.0,178.83,178.74,1.78290125]
[1722111940084,20.0,178.87,178.74,1.78290125]
[1722111940286,25.5906,178.87,178.74,1.78290125]
[1722111940465,40.0,178.89,178.74,1.78290125]
[1722111940779,20.0,178.87,178.74,1.78290125]
[1722111941084,20.0,178.93,178.74,1.78290125]
[1722111941257,20.0,178.92,178.74,1.78290125]
[1722111941459,20.0,178.93,178.74,1.78290125]
[1722111941664,20.0,178.91,178.76,21.8748]
[1722111941967,20.0,178.88,178.77,45.0]
[1722111942270,20.0,178.86,178.76,21.8748]
[1722111942887,40.0,178.86,178.76,21.8748]
[1722111943226,20.0,178.78,178.74,1.78290125]
[1722111943491,20.0,178.79,178.74,1.78290125]
[1722111943677,20.0,178.82,178.74,1.78290125]
[1722111943872,20.0,178.79,178.74,1.78290125]
[1722111944078,25.5933,178.79,178.74,1.78290125]
[1722111944266,45.5927,178.81,178.74,1.78290125]
[1722111944579,25.592,178.83,178.74,1.78290125]
[1722111944789,20.0,178.83,178.74,1.78290125]
[1722111945286,20.0,178.85,178.74,1.78290125]
[1722111945490,25.5905,178.88,178.74,1.78290125]
[1722111945679,5.5908,178.87,178.74,1.78290125]
[1722111945884,20.0,178.88,178.74,1.78290125]
[1722111946465,20.0,178.91,178.74,63.57290125]
[1722111946782,20.0,178.91,178.75,20.0]
[1722111947091,25.5895,178.91,178.76,45.0]
[1722111947299,20.0,178.93,178.76,45.0]
[1722111947300,45.5888,178.93,178.76,45.0]
[1722111947591,40.0,178.95,178.77,52.1776]
[1722111947790,25.5872,178.98,178.79,6.4872]
[1722111948096,5.5876,178.97,178.8,0.17]
[1722111948270,20.0,178.98,178.8,65.34]
[1722111948866,20.0,178.95,178.8,65.0]
[1722111949173,5.5883,178.95,178.8,65.0]
[1722111949373,25.5877,178.97,178.8,65.0]
[1722111949678,20.0,178.98,178.8,65.0]
[1722111949886,25.82454206,179.0,178.81,0.34]
[1722111950069,45.82454206,179.0,178.81,0.34]
[1722111950271,45.5868,179.0,178.81,0.34]
[1722111950486,20.0,179.0,178.81,0.34]
[1722111950772,25.586,179.02,178.81,17.13]
[1722111950984,25.586,179.02,178.82,65.0]
[1722111951185,20.0,179.02,178.83,0.34]
[1722111951889,20.0,179.04,178.83,0.34]
[1722111952089,40.0,179.04,178.83,0.34]
[1722111952266,20.0,179.04,178.83,1.45748273]
[1722111952667,20.0,179.09,178.87,16.79]
[1722111952979,20.0,179.09,178.86,15.9698]
[1722111952980,25.5838,179.09,178.88,82.13]
[1722111953480,20.0,179.09,178.88,82.13]
[1722111953670,20.0,179.11,178.9,16.79]
[1722111953870,5.5833,179.11,178.91,83.24710091]
[1722111954169,5.5826,179.13,178.91,82.13]
[1722111954378,20.0,179.14,178.91,82.13]
[1722111954576,25.5822,179.14,178.91,82.13]
[1722111954790,20.0,179.14,178.91,82.13]
[1722111954991,20.0,179.16,178.92,1.11686556]
[1722111955183,20.0,179.16,178.94,16.79]
[1722111955382,5.5814,179.17,178.96,32.7598]
[1722111955693,5.5814,179.17,178.98,16.79]
[1722111955885,40.0,179.21,179.0,22.9281]
[1722111956088,40.0,179.21,179.01,20.34]
[1722111956089,5.5807,179.19,179.01,20.34]
[1722111956279,20.0,179.22,179.02,45.0]
[1722111956478,5.5805,179.2,179.03,0.34]
[1722111956670,5.5805,179.2,179.03,20.34]
[1722111956869,5.5805,179.2,179.04,45.0]
[1722111957071,5.5805,179.2,179.05,20.34]
[1722111957280,5.5799,179.22,179.06,45.0]
[1722111957480,20.0,179.23,179.06,45.0]
[1722111957481,5.5802,179.21,179.06,45.0]
[1722111957693,33.9468,179.26,179.06,45.0]
[1722111957694,20.0,179.25,179.06,45.0]
[1722111957904,5.5808,179.19,179.06,45.0]
[1722111958201,5.581,179.18,179.06,45.0]
[1722111958399,20.0,179.15,179.0,6.1381]
[1722111958575,5.5835,179.1,179.0,6.1381]
[1722111958997,5.5823,179.14,179.0,6.1381]
[1722111959184,20.0,179.16,179.0,6.1381]
[1722111959502,5.5836,179.1,179.0,6.1381]
[1722111959670,5.5833,179.11,179.0,6.1381]
[1722111960000,5.5827,179.13,179.0,6.1381]
[1722111960199,5.5819,179.15,179.0,6.1381]
[1722111960698,5.5814,179.17,179.0,6.1381]
[1722111960902,5.5814,179.17,179.01,45.0]
[1722111961104,20.0,179.22,179.02,36.79]
[1722111961105,5.5802,179.21,179.02,36.79]
[1722111961274,5.5802,179.21,179.04,16.79]
[1722111961592,20.0,179.25,179.05,65.34]
[1722111961801,5.5801,179.21,179.05,65.34]
[1722111962005,20.0,179.23,179.05,65.34]
[1722111962200,5.5801,179.21,179.05,65.34]
[1722111962498,5.83534966,179.27,179.07,22.9281]
[1722111962702,20.0,179.32,179.09,16.79]
[1722111962997,20.0,179.32,179.08,66.45599791]
[1722111962998,5.5773,179.3,179.11,16.79]
[1722111963307,0.7707845,179.35,179.13,16.79]
[1722111963608,0.7707845,179.35,179.17,16.79]
[1722111963788,0.7707845,179.35,179.19,6.1381]
[1722111963988,0.7707845,179.35,179.2,65.34]
[1722111964820,0.7707845,179.35,179.2,20.0]
[1722111965026,6.3464845,179.35,179.2,20.0]
[1722111965230,0.7707845,179.35,179.21,0.34]
[1722111965903,0.7707845,179.35,179.2,20.34]
[1722111966112,0.7707845,179.35,179.21,45.34]
[1722111966402,0.7707845,179.35,179.22,20.0]
[1722111966918,0.7707845,179.35,179.2,20.0]
[1722111967905,0.7707845,179.35,179.21,0.17]
[1722111968098,0.7707845,179.35,179.21,62.13]
[1722111968322,0.7707845,179.35,179.22,20.0]
[1722111968498,0.7707845,179.35,179.23,45.17]
[1722111968811,0.7707845,179.35,179.24,20.0]
[1722111969016,6.3465845,179.35,179.25,45.0]
[1722111969207,5.5783,179.27,179.19,6.1381]
[1722111969532,5.5782,179.27,179.19,6.1381]
[1722111969699,20.0,179.27,179.19,6.1381]
[1722111970005,20.0,179.29,179.19,6.1381]
[1722111970331,20.0,179.28,179.11,6.1381]
[1722111970493,13.9421,179.32,179.11,6.1381]
[1722111970494,20.0,179.24,179.11,6.1381]
[1722111970697,20.0,179.25,179.11,6.1381]
[1722111970897,20.0,179.32,179.11,6.1381]
[1722111971123,20.7707845,179.35,179.12,16.79]
[1722111971331,20.0,179.33,179.12,16.79]
[1722111971506,0.7707845,179.35,179.12,16.79]
[1722111971700,0.7707845,179.35,179.14,39.51]
[1722111971897,0.7707845,179.35,179.16,22.9281]
[1722111972104,0.7707845,179.35,179.18,16.79]
[1722111972320,0.7707845,179.35,179.2,16.79]
[1722111972521,0.7707845,179.35,179.19,65.34]
[1722111972522,0.7707845,179.35,179.21,20.34]
[1722111972722,0.7707845,179.35,179.19,37.13]
[1722111972723,0.7707845,179.35,179.22,61.79]
[1722111973019,0.7707845,179.35,179.25,16.79]
[1722111973226,0.7707845,179.35,179.27,15.5976]
[1722111973400,20.0,179.48,179.28,0.34]
[1722111973600,20.0,179.48,179.28,65.34]
[1722111973839,45.5712,179.5,179.29,0.17]
[1722111974829,5.5714,179.49,179.29,0.17]
[1722111975124,20.0,179.5,179.29,0.17]
[1722111975337,20.0,179.52,179.29,0.17]
[1722111975508,0.7707845,179.53,179.31,16.79]
[1722111975703,6.3409845,179.53,179.33,16.79]
[1722111975906,40.7707845,179.53,179.34,65.34]
[1722111976243,0.7707845,179.53,179.34,45.34]
[1722111976535,0.7707845,179.53,179.35,36.79]
[1722111976739,0.7707845,179.53,179.36,45.34]
[1722111976938,0.7707845,179.53,179.37,20.0]
[1722111977443,0.7707845,179.53,179.38,45.34]
[1722111977606,0.7707845,179.53,179.4,38.6989]
[1722111977812,0.7707845,179.53,179.41,65.34]
[1722111978107,0.7707845,179.53,179.4,21.9089]
[1722111978514,20.0,179.52,179.4,21.9089]
[1722111978830,44.6249,179.64,179.4,21.9089]
[1722111978831,20.0,179.98,179.79,5.562]
[1722111979043,20.0,179.98,179.51,65.44]
[1722111979044,20.0,179.91,179.73,24.4686084]
[1722111979240,20.7707845,179.89,179.73,24.4686084]
[1722111979536,40.0,179.82,179.57,22.72]
[1722111979701,20.0,179.78,179.58,15.5976]
[1722111979904,20.0,179.71,179.58,6.3113]
[1722111980114,20.0,179.69,179.47,23.1013]
[1722111980327,20.0,179.7,179.51,22.72]
[1722111980529,20.0,179.75,179.51,39.51]
[1722111980927,5.5641,179.73,179.52,45.0]
[1722111981136,20.0,179.75,179.52,61.79]
[1722111981341,20.0,179.75,179.53,0.17]
[1722111981618,20.0,179.75,179.53,20.34]
[1722111981846,5.5631,179.76,179.54,45.0]
[1722111982021,40.0,179.78,179.55,20.34]
[1722111982222,20.0,179.79,179.56,67.72]
[1722111982420,5.5623,179.79,179.57,20.34]
[1722111982643,5.5623,179.79,179.58,45.0]
[1722111982941,20.0,179.78,179.59,20.0]
[1722111983316,20.0,179.85,179.6,45.34]
[1722111983516,20.0,179.85,179.62,6.3113]
[1722111983822,5.5626,179.77,179.63,20.0]
[1722111984141,20.0,179.77,179.63,20.0]
[1722111984318,20.0,179.81,179.63,20.0]
[1722111984520,5.563,179.76,179.62,6.3113]
[1722111984729,20.0,179.75,179.62,6.3113]
[1722111985236,5.5664,179.65,179.54,6.3113]
[1722111985443,20.0,179.69,179.54,6.3113]
[1722111985743,45.0,179.74,179.54,6.3113]
[1722111985948,0.34,179.73,179.54,6.3113]
[1722111986324,20.34,179.73,179.54,6.3113]
[1722111986516,45.0,179.72,179.54,6.3113]
[1722111986723,20.0,179.7,179.54,6.3113]
[1722111987642,5.5614,179.82,179.6,22.72]
[1722111987842,20.0,179.88,179.61,61.79]
[1722111988140,5.5595,179.87,179.63,28.475]
[1722111988344,20.0,179.88,179.64,71.6513]
[1722111988648,20.0,179.79,179.64,26.3113]
[1722111988835,5.5609,179.83,179.64,26.3113]
[1722111989031,40.0,179.86,179.64,26.3113]
[1722111989338,5.5613,179.82,179.64,26.3113]
[1722111989931,20.0,179.84,179.64,26.3113]
[1722111990143,5.5612,179.82,179.64,26.3113]
[1722111990644,5.5618,179.8,179.64,26.3113]
[1722111990852,20.0,179.8,179.64,6.3113]
[1722111991038,25.5625,179.78,179.64,6.3113]
[1722111991266,0.34,179.77,179.64,6.3113]
[1722111991551,0.17,179.77,179.64,6.3113]
[1722111991723,20.0,179.87,179.64,6.3113]
[1722111992049,20.0,179.82,179.64,6.3113]
[1722111992231,30.6861,179.91,179.64,6.3113]
[1722111992232,20.0,179.78,179.64,6.3113]
[1722111992441,27.7876,179.94,179.65,20.0]
[1722111992442,20.0,179.86,179.65,20.0]
[1722111992645,27.7876,179.94,179.65,20.0]
[1722111992646,5.5597,179.87,179.65,20.0]
[1722111992847,0.7707845,179.89,179.66,45.34]
[1722111993044,0.7707845,179.89,179.67,20.0]
[1722111993232,0.7707845,179.89,179.68,45.34]
[1722111993437,6.3299845,179.89,179.69,20.0]
[1722111993635,46.3299845,179.89,179.7,45.17]
[1722111993940,46.3299845,179.89,179.68,45.34]
[1722111993941,26.3299845,179.89,179.71,20.0]
[1722111994344,0.7707845,179.89,179.72,45.0]
[1722111994545,0.7707845,179.89,179.73,36.79]
[1722111994753,0.7707845,179.89,179.75,6.3327]
[1722111995049,0.7707845,179.89,179.76,20.34]
[1722111995358,0.7707845,179.89,179.77,15.8915]
[1722111995573,20.0,179.99,179.77,15.8915]
[1722111995574,5.5561,179.99,179.78,20.0]
[1722111995731,20.0,180.01,179.79,45.34]
[1722111995932,20.0,180.01,179.8,20.0]
[1722111996359,20.0,180.03,179.81,45.34]
[1722111996651,5.556,179.99,179.82,20.0]
[1722111996853,5.5563,179.98,179.82,20.0]
[1722111997057,13.8845,180.06,179.82,20.0]
[1722111997058,5.5568,179.96,179.82,20.0]
[1722111997234,20.0,179.96,179.83,0.34]
[1722111997552,13.8845,180.06,179.83,0.34]
[1722111997553,40.0,180.06,179.83,0.34]
[1722111997763,20.0,180.06,179.84,6.3327]
[1722111998057,20.0,180.14,179.89,15.8915]
[1722111998360,20.0,180.14,179.93,22.72]